[Event "FIDE Womens Candidates 2024"]
[Site "Toronto"]
[Date "2024.04.15"]
[Round "10.4"]
[White "Salimova, Nurgyul"]
[Black "Vaishali, Rameshbabu"]
[Result "0-1"]
[ECO "D90"]
[WhiteElo "2432"]
[BlackElo "2475"]
[Annotator "TA"]
[PlyCount "176"]
[EventDate "2024.04.02"]
[EventType "tourn"]
[EventCountry "CAN"]
[SourceTitle "playchess.com"]
[Source "ChessBase"]
[SourceQuality "1"]
[TimeControl "40/5400+30:1800+30"]

{[%evp 9,176,0,0,0,0,14,24,14,16,10,3,0,18,14,27,25,18,0,0,0,0,0,0,0,0,0,0,0,0,0,0,0,30,36,125,0,3,1,2,1,8,8,2,2,8,0,12,0,2,0,8,0,10,0,13,0,0,0,0,0,0,0,8,0,72,66,83,53,70,61,35,0,14,10,148,138,281,299,290,257,285,247,279,264,704,693,647,640,1397,853,1711,1776,1790,1163,1775,1232,1230,1166,1107,8,8,0,0,0,0,0,0,0,1945,0,0,0,0,0,0,0,0,0,0,0,0,0,0,-124,-122,-229,-237,-12504,-12795,-12504,-6022,-29945,-1075,-29946,-29944,-10563,-8569,-29945,-29944,-29944,-29944,-9822,-4525,-29957,-5257,-29977,-29978,-29978,-29979,-29980,-29981,-29981,-29982,-29982,-8,-8,0,-29982,-29983,-29983,-29984,-29984,-29985,-29987,-29988,-29992,-29986,-29986,-29987]} 1. d4 {[%emt 0:00:03]} Nf6 {[%emt 0:00:13]} 2. c4 {[%emt 0:00:05]} g6 {[%emt 0:00:01]} 3. Nc3 {[%emt 0:00:08]} d5 {[%emt 0:00:04]} 4. Nf3 {[%emt 0:00:22]} Bg7 {[%emt 0:00:07]} 5. h4 {[%emt 0:00:40]} O-O {[%emt 0:00:08]} 6. cxd5 {[%emt 0:01:24]} Nxd5 {[%emt 0:00:03]} 7. h5 {[%emt 0:00:21]} c5 {[%emt 0:00:14]} 8. hxg6 {[%emt 0:00:43] White has an edge.} (8. dxc5 Nxc3 9. bxc3 Qxd1+ (9... Bxc3+ 10. Bd2 $15) 10. Kxd1 Bxc3 $17) 8... hxg6 {[%emt 0:00:03]} 9. Bh6 {[%emt 0:01:44]} (9. dxc5 Nxc3 10. bxc3 Qxd1+ (10... Bxc3+ 11. Bd2 $17) 11. Kxd1 Bxc3 $17) 9... Bxh6 {[%emt 0:00:07]} 10. Rxh6 {[%emt 0:00:07]} Nxc3 {[%emt 0:01:25]} 11. bxc3 {[%emt 0:00:06]} Kg7 {[%emt 0:00:03]} 12. Qd2 {[%emt 0:02:59]} cxd4 {[%emt 0:02:29]} 13. Rh4 {[%emt 0:10:28]} (13. Nxd4 $2 e5 14. Rh1 exd4 $19) 13... Rh8 {[%emt 0:00:40] Against Qh6+} 14. Rxh8 {[%emt 0:00:22]} (14. Rxd4 Qc7 15. g3 Nc6 $17) 14... Qxh8 {[%emt 0:00:10]} 15. cxd4 {[%emt 0:01:38]} Nd7 {[%emt 0:00:48]} 16. e4 {[%emt 0:06:27]} Nf6 {[%emt 0:01:57]} 17. Qf4 {[%emt 0:01:36]} Bd7 {[%emt 0:00:58]} 18. Ng5 {[%emt 0:15:33]} Rf8 {[%emt 0:04:45]} 19. Rb1 {[%emt 0:10:16]} b6 {[%emt 0:03:21]} 20. f3 {[%emt 0:04:54]} Qh6 {[%emt 0:21:53]} 21. Rc1 {[%emt 0:04:13]} Nh7 {[%emt 0:07:33]} (21... Kg8 $14) 22. Nh3 {[%emt 0:02:48]} (22. Rc7 $1 $16) 22... Bxh3 $11 {[%emt 0:09:41]} 23. Qxh6+ {[%emt 0:00:07]} Kxh6 {[%emt 0:00:02]} 24. gxh3 {[%emt 0:00:07][%mdl 4096] Endgame. KRB-KRN} Ng5 {[%emt 0:00:21]} 25. Kf2 {[%emt 0:03:40]} Ne6 {[%emt 0:07:45]} 26. Ke3 {[%emt 0:04:44]} Rd8 {[%emt 0:02:02]} 27. d5 {[%emt 0:00:09]} Nc5 {[%emt 0:00:13]} 28. Bc4 {[%emt 0:00:53]} e5 {[%emt 0:08:06]} 29. a4 {[%emt 0:08:21][%cal Oa4a5]} a5 {[%emt 0:10:36]} 30. Bb5 {[%emt 0:03:03]} f5 {[%emt 0:00:46]} 31. Rd1 {[%emt 0:03:31]} Kg5 {[%emt 0:04:24]} 32. Bc6 {[%emt 0:05:24]} Kf6 {[%emt 0:03:18]} 33. h4 {[%emt 0:03:58]} Rh8 {[%emt 0:05:52]} 34. d6 {[%emt 0:03:05]} f4+ {[%emt 0:01:09]} (34... Rxh4 $2 35. d7 Nxd7 (35... f4+ $2 36. Kf2 $18) 36. Rxd7 $18) 35. Kf2 {[%emt 0:00:04]} Ne6 {[%emt 0:01:52][%cal Oe6d4]} (35... Rxh4 $2 36. d7 Nxd7 37. Rd6+ (37. Bxd7 Rh2+ 38. Kg1 Rb2 $18) 37... Kf7 38. Rxd7+ (38. Bxd7 Ke7 $18) 38... Kf8 39. Rd6 $18) 36. Rd5 {[%emt 0:01:34]} Rc8 {[%emt 0:02:24]} (36... Rxh4 $11 {keeps the balance.} 37. Be8 Rh2+ 38. Kg1 Rb2) 37. Bb5 $16 {[%emt 0:00:43]} Rc2+ {[%emt 0:02:13]} 38. Kf1 {[%emt 0:01:06]} Rc1+ {[%emt 0:00:34]} 39. Kg2 {[%emt 0:00:39]} Nd8 {[%emt 0:01:05]} 40. d7 {[%emt 0:00:00]} Ke6 {[%emt 0:00:00] Against Rd6+} 41. Rd2 {[%emt 0:05:31] Threatening Kh2.} Ke7 {[%emt 0:02:54]} (41... Rc3 $1 $11) 42. Kh2 $1 {[%emt 0:04:18]} Rc5 {[%emt 0:17:46]} (42... Rc3 $16) 43. Rg2 $18 {[%emt 0:01:20]} Kf7 {[%emt 0:01:33] [#]} 44. h5 $1 {[%emt 0:01:35][%mdl 512]} gxh5 {[%emt 0:00:05]} 45. Rg5 {[%emt 0:00:56]} Ke7 {[%emt 0:02:28]} 46. Rxh5 {[%emt 0:02:25]} Nc6 $2 {[%emt 0:04:19]} (46... Ke6 47. Rh6+ Ke7 48. Rh7+ (48. Rxb6 Rc3 $18) 48... Ke6) 47. Rh7+ {[%emt 0:01:00]} Kd8 {[%emt 0:00:02][%cal Oc5b5]} 48. Kh3 {[%emt 0:01:09]} Kc7 {[%emt 0:04:00]} 49. Kg4 {[%emt 0:01:14]} Nd8 {[%emt 0:00:20]} 50. Kf5 {[%emt 0:00:33]} Rc3 {[%emt 0:00:25]} 51. Kxe5 {[%emt 0:02:45] Hoping for Kf6.} Rxf3 {[%emt 0:00:07]} 52. Rh1 {[%emt 0:04:04] White wants to mate with Rc1+.} Nb7 {[%emt 0:01:16]} 53. Kf6 {[%emt 0:07:16]} Re3 {[%emt 0:01:03]} 54. e5 $2 {[%emt 0:00:29]} (54. Rh8 $18 {Intending Rc8+ and mate.} Nd8 55. e5) 54... Nc5 $11 {[%emt 0:00:19]} 55. Rh7 {[%emt 0:03:20]} (55. Kf5 $5 f3 $8 56. Rh3 $16 (56. Rd1 Kd8 $11)) 55... f3 {[%emt 0:00:23]} 56. Re7 {[%emt 0:01:35]} f2 {[%emt 0:00:53]} 57. Kf7 {[%emt 0:00:17] Black must now prevent Ke8.} Rh3 {[%emt 0:01:08]} 58. e6 {[%emt 0:00:42]} Nb7 $2 {[%emt 0:00:31][%mdl 8192] [#]} (58... Rh7+ $11 59. Kf8 Rh8+ 60. Kf7 (60. Kg7 Rh1 $11) 60... Rh7+ (60... Rh1 61. Kf8 $11) 61. Ke8 (61. Kf8 Rh6 $11) 61... Rh8+ 62. Kf7 Rh7+ (62... Rh1 63. Bc4 $11)) 59. d8=Q+ $2 {[%emt 0:00:54]} Kxd8 {[%emt 0:00:02]} 60. Rd7+ {[%emt 0:00:07]} Kc8 {[%emt 0:00:04]} 61. Rd1 {[%emt 0:00:33]} Rf3+ {[%emt 0:01:06]} 62. Kg6 {[%emt 0:00:42]} Re3 {[%emt 0:00:21]} 63. Kf6 {[%emt 0:00:33] Strongly threatening e7.} Rf3+ {[%emt 0:00:55]} (63... Re1 $5 64. e7 $8 Kc7 65. Rd7+ Kc8 $11) 64. Kg5 {[%emt 0:00:16] aiming for e7.} Re3 {[%emt 0:00:17][%cal Oe3e1] ...Re1! is the strong threat.} 65. Kf6 {[%emt 0:00:05]} Rf3+ {[%emt 0:00:42]} (65... Re1 $5 66. e7 $8 Kc7 67. Rd7+ Kc8 $11) 66. Ke7 {[%emt 0:00:30]} (66. Kg6 $11 {remains equal.} Re3 67. Kf6) 66... Nc5 {[%emt 0:00:29] Threatens to win with ...Re3.} 67. Kd6 {[%emt 0:00:45]} (67. Rf1 $17) 67... Re3 $1 $19 {[%emt 0:00:27]} 68. Bd7+ $2 {[%emt 0:00:44]} (68. Bc4 Re1 (68... Nxa4 69. Rh1 $11) 69. Rd4) 68... Nxd7 {[%emt 0:00:37]} 69. exd7+ {[%emt 0:00:05] KR-KR} Kd8 {[%emt 0:00:01]} 70. Rf1 {[%emt 0:00:36]} Re2 {[%emt 0:00:58]} (70... Rf3 $142 71. Ke6 Rf4 72. Kd6 Rf7 (72... Rxa4 73. Rxf2 Rd4+ 74. Kc6 $11) 73. Ke6 Re7+ (73... Rxd7 74. Rxf2 Rd4 75. Ra2 $17) 74. Kd5 Rxd7+ (74... Kxd7 75. Rxf2 Rh7 76. Rf5 $15) 75. Kc6 Rf7 76. Kd5 Kd7 77. Ke5 Ke7 78. Kd5 Rf5+ 79. Ke4 Ke6 80. Ke3 Kd5 81. Ke2 Kc4 82. Ke3 Kb3 83. Ke4 Rf7 84. Kd4 Kxa4 85. Kc3 Rf3+ 86. Kd4 Kb3 87. Ke4 Rf7 88. Kd5 Kb2 89. Ke6 Rf3 90. Kd7 a4 91. Ke6 a3 92. Ke5 a2 93. Ke4 Rf7 (93... a1=R 94. Kxf3 Rxf1 95. Kg2 Rd1 96. Kxf2 Rd3 97. Ke1 b5 98. Ke2 Kc3 99. Kf2 b4 100. Kg2 b3 101. Kh2 b2 102. Kg2 b1=Q 103. Kf2 Qc2+ 104. Kg1 Rd1#) (93... a1=Q 94. Rxa1 Kxa1 95. Kxf3 f1=Q+ 96. Ke4 b5 97. Kd5 b4 98. Ke5 b3 99. Ke4 b2 100. Ke3 b1=Q 101. Kd4 Qf6+ 102. Kd5 Qd3+ 103. Kc5 Qfd6#) 94. Ke3 a1=Q (94... a1=B $2 95. Kd4 $19) 95. Rxf2+ Rxf2 96. Kxf2 Kc2 (96... Ka2 97. Kg3 Qe5+ 98. Kh4 b5 99. Kh3 b4 100. Kg4 b3 101. Kh3 b2 102. Kg2 b1=Q 103. Kf3 Qh1+ 104. Kg4 Qhh5#) 97. Kg3 Qf6 98. Kg4 Kd3 99. Kg3 Ke3 100. Kh2 Qg6 101. Kh1 Kf2 102. Kh2 Qh7#) 71. Kc6 {[%emt 0:00:42]} Re6+ $1 {[%emt 0:00:30]} 72. Kd5 {[%emt 0:00:09]} Rf6 {[%emt 0:00:12]} (72... Kxd7 73. Rxf2 Re1 74. Rf7+ Ke8 75. Rb7 $11) 73. Ke5 {[%emt 0:00:05]} Rf7 {[%emt 0:00:35]} 74. Ke6 {[%emt 0:00:38]} Re7+ {[%emt 0:00:06]} ({Weaker is} 74... Rxd7 75. Rxf2 Rd4 76. Ra2 $15) 75. Kd6 {[%emt 0:00:08]} Rxd7+ {[%emt 0:00:05]} 76. Kc6 {[%emt 0:00:03] [#]} Rf7 $1 {[%emt 0:00:26] ( -> ...Rf4)} 77. Kxb6 {[%emt 0:00:43] [#]} Rf5 $1 {[%emt 0:00:05]} 78. Kc6 {[%emt 0:01:00]} Ke7 {[%emt 0:00:37]} 79. Kb6 {[%emt 0:00:29]} Kd6 {[%emt 0:00:37]} 80. Ka6 {[%emt 0:00:22]} Kc6 {[%emt 0:01:06]} 81. Rc1+ {[%emt 0:01:04]} Rc5 $2 {[%emt 0:00:10]} (81... Kd5 {mates} 82. Rf1 Kc4 83. Kb7 Kd3 (83... Kb4 $2 84. Kc8 $19) 84. Rd1+ Ke2 85. Ra1 f1=Q (85... f1=R $2 86. Ra2+ Kd3 87. Rh2 $19) 86. Rxf1 Rxf1 87. Kc7 Ra1 88. Kd7 Rxa4 89. Ke7 Rb4 90. Kf7 a4 91. Ke7 a3 92. Kd6 a2 93. Kc5 Rb1 (93... a1=R {is a self mate.} 94. Kxb4 Rc1 95. Kb3 Kd3 96. Kb4 Rc4+ 97. Ka5 Rc5+ 98. Kb6 Kc4 99. Ka6 Rc6+ 100. Ka7 Kb5 101. Kb7 Rc5 102. Ka7 Kc6 103. Ka6 Kc7 104. Ka7 Ra5#) 94. Kd5 a1=Q (94... a1=B 95. Kc4 Ke3 96. Kd5 Bd4 97. Kc4 Rb6 98. Kd5 Ra6 99. Kc4 Rd6 100. Kb5 Kd3 101. Kb4 Rb6+ 102. Ka4 Kc4 103. Ka5 Rh6 104. Ka4 Ra6#) 95. Ke6 Rb6+ 96. Kf5 Kf3 97. Kg5 Qg7+ 98. Kh5 Qh6#) 82. Rf1 $11 {[%emt 0:00:11]} Rf5 $2 {[%emt 0:00:03][%mdl 8192]} (82... Rc2 $11) 83. Rc1+ $1 {[%emt 0:00:04]} Kd5 {[%emt 0:01:07] Black mates.} 84. Rf1 {[%emt 0:01:26]} Kc4 {[%emt 0:00:17]} 85. Kb6 {[%emt 0:00:54]} Kd3 {[%emt 0:00:26]} 86. Rxf2 {[%emt 0:00:24]} Rxf2 {[%emt 0:00:05]} 87. Kxa5 {[%emt 0:00:03]} Kc4 {[%emt 0:00:04]} 88. Kb6 {[%emt 0:00:03]} Kb4 {[%emt 0:00:05] What a bad dream for White.   Weighted Error Value: White=0.27 (precise) /Black=0.22 (precise) .  Loses game:     	---       	Black=1      Missed win:     	White=1     	---        Mistake:       	White=4     	Black=5      Inaccurate:     	White=2     	Black=1      OK:         	White=24    	Black=23     Best:        	White=9     	Black=3      Strong:       	White=2     	Black=1      Brilliant:      	White=1     	---} 0-1

[Event "FIDE Womens Candidates 2024"]
[Site "Toronto"]
[Date "2024.04.18"]
[Round "12.1"]
[White "Salimova, Nurgyul"]
[Black "Tan, Zhongyi"]
[Result "1/2-1/2"]
[ECO "A11"]
[WhiteElo "2432"]
[BlackElo "2521"]
[Annotator "TA"]
[PlyCount "136"]
[EventDate "2024.04.02"]
[EventType "tourn"]
[EventCountry "CAN"]
[SourceTitle "playchess.com"]
[Source "ChessBase"]
[SourceQuality "1"]
[TimeControl "40/5400+30:1800+30"]

{[%evp 57,136,193,218,200,233,147,127,107,356,271,266,270,268,271,273,250,294,267,284,258,476,320,359,361,343,358,354,337,295,121,103,140,122,130,410,381,389,385,355,364,336,357,309,47,57,24,33,0,0,0,8,0,0,0,0,0,0,0,68,67,69,69,69,68,69,68,68,0,68,0,0,0,0,0,0,0,0,0,0,0,0]} 1. Nf3 {[%emt 0:00:08]} d5 {[%emt 0:02:24]} 2. g3 {[%emt 0:00:15]} Bf5 {[%emt 0:02:59]} 3. Bg2 {[%emt 0:00:21]} e6 {[%emt 0:00:04]} 4. O-O {[%emt 0:02:21]} Nf6 {[%emt 0:00:37]} 5. c4 {[%emt 0:00:50]} c6 {[%emt 0:00:19]} 6. Qb3 {[%emt 0:01:06]} Qb6 {[%emt 0:00:44]} 7. d3 {[%emt 0:00:27] A11: English Opening: 1...c6.} Nbd7 {[%emt 0:05:09]} 8. cxd5 {[%emt 0:02:44]} Qxb3 {[%emt 0:03:09]} 9. axb3 {[%emt 0:00:05]} exd5 {[%emt 0:00:04]} 10. Bd2 {[%emt 0:00:29]} Bd6 {[%emt 0:08:20]} 11. b4 {[%emt 0:03:30]} O-O {[%emt 0:09:59]} 12. Na3 $146 {[%emt 0:17:09]} ({Predecessor:} 12. Nd4 Bg6 13. b5 c5 14. Nb3 a6 15. Nc3 d4 16. Bxb7 Ra7 17. bxa6 dxc3 18. bxc3 {½-½ Banusz,T (2620)-Aczel,G (2515) SVK-chT 1920 2019 (5.6)}) 12... a6 {[%emt 0:04:10]} 13. Nc2 {[%emt 0:02:41]} Ne5 {[%emt 0:00:42]} 14. Nfd4 {[%emt 0:01:04]} Bd7 {[%emt 0:02:15]} 15. f4 {[%emt 0:01:01]} Ng6 {[%emt 0:00:06]} 16. e4 {[%emt 0:01:20]} dxe4 {[%emt 0:00:13]} 17. dxe4 {[%emt 0:00:09]} Bc7 {[%emt 0:00:07]} 18. Nb3 {[%emt 0:05:53]} Rad8 {[%emt 0:02:57]} 19. Bc3 {[%emt 0:04:26]} Rfe8 {[%emt 0:00:10]} 20. Rfe1 {[%emt 0:01:45]} Bc8 {[%emt 0:00:16]} 21. Nc5 {[%emt 0:10:15]} h5 {[%emt 0:00:11]} 22. Ne3 {[%emt 0:04:09]} Nf8 {[%emt 0:06:05]} 23. e5 {[%emt 0:02:45]} Ng4 {[%emt 0:02:29]} 24. Nc4 {[%emt 0:00:52]} Ne6 {[%emt 0:14:59]} 25. Rad1 {[%emt 0:11:06]} b6 {[%emt 0:08:49]} 26. Nxe6 {[%emt 0:02:07]} Bxe6 {[%emt 0:00:41]} 27. Nd6 {[%emt 0:00:22]} b5 {[%emt 0:04:05]} 28. Bxc6 {[%emt 0:04:05]} Re7 {[%emt 0:00:03]} 29. h3 {[%emt 0:10:56]} Nh6 {[%emt 0:00:05]} 30. Kg2 {[%emt 0:00:42]} Bb3 {[%emt 0:03:25]} 31. Rd4 {[%emt 0:03:00]} Re6 {[%emt 0:02:47]} 32. Bf3 {[%emt 0:05:21]} h4 $2 {[%emt 0:00:09]} (32... Bxd6 $16 {was necessary.} 33. Rxd6 (33. exd6 Rxe1 34. Bxe1 Nf5 $16) 33... Rexd6 34. exd6 h4) 33. f5 {[%emt 0:01:02]} (33. gxh4 Bxd6 34. Rxd6 (34. exd6 Nf5 $11) 34... Rexd6 35. exd6 f6 $11) 33... Re7 {[%emt 0:00:06]} 34. g4 {[%emt 0:00:31]} (34. Rxh4 $6 Bxd6 35. f6 (35. exd6 Rxe1 36. Bxe1 Nxf5 $14) 35... gxf6 $16 (35... Nf5 $2 36. Rf4 $18)) (34. gxh4 f6 $16) 34... f6 {[%emt 0:00:08]} 35. Ne4 {[%emt 0:01:46]} Rxd4 {[%emt 0:00:14]} 36. Bxd4 {[%emt 0:00:06]} Bxe5 {[%emt 0:02:04]} 37. Nc5 {[%emt 0:00:21]} Bc4 {[%emt 0:00:28]} 38. Bxe5 {[%emt 0:00:35]} (38. Nxa6 Nf7 $16) 38... fxe5 $2 {[%emt 0:00:13]} (38... Rxe5 {was called for.} 39. Rxe5 fxe5) 39. b3 {[%emt 0:00:44]} (39. Nxa6 Nf7 $16) 39... Bf7 {[%emt 0:00:07]} 40. Be4 {[%emt 0:00:00]} (40. Nxa6 Bxb3 41. Nc5 Bc4 $16) 40... Be8 {[%emt 0:00:00]} 41. g5 {[%emt 0:07:04]} (41. Nxa6 Nf7 42. Bd5 Kf8 $18) 41... Nf7 {[%emt 0:01:52]} 42. Bd5 {[%emt 0:03:18]} (42. Nxa6 Nxg5 43. Bd5+ Bf7 $17) 42... Kh8 {[%emt 0:01:41]} 43. f6 {[%emt 0:07:15]} (43. Nxa6 Nxg5 44. Nc5 e4 $11) (43. Bxf7 $18 {has better winning chances.} Bxf7 44. g6 (44. Nxa6 e4 $11)) 43... gxf6 $16 {[%emt 0:00:09]} 44. gxf6 {[%emt 0:00:07]} (44. Nxa6 Nxg5 45. Nb8 Ra7 $19) 44... Rc7 {[%emt 0:03:29]} 45. Kf2 {[%emt 0:01:53]} a5 $2 {[%emt 0:10:38][%mdl 8192]} (45... Kh7 $16 46. Rg1 (46. Nxa6 Rd7 $14) 46... Nd6) 46. Re4 {[%emt 0:00:42]} axb4 {[%emt 0:00:28]} 47. Rxh4+ {[%emt 0:00:05]} Kg8 {[%emt 0:00:04]} 48. Rg4+ {[%emt 0:01:24]} Kh8 {[%emt 0:00:09]} 49. Nd3 {[%emt 0:07:10]} Rd7 {[%emt 0:01:59]} 50. Bxf7 $2 {[%emt 0:03:28]} (50. Nxb4 $18 {Threatens to win with Rh4+.} Nh6 51. Rh4) 50... Rxf7 $14 {[%emt 0:00:10]} 51. Rh4+ {[%emt 0:00:32]} (51. Ke3 {simplifies} Rxf6 52. Nxe5 Rf1 53. Rxb4 Kg7 54. Rg4+) 51... Kg8 {[%emt 0:00:06]} 52. Rh6 {[%emt 0:00:21]} Rc7 {[%emt 0:04:07]} 53. Nxe5 {[%emt 0:00:10]} Rc5 {[%emt 0:00:27]} 54. Nd3 {[%emt 0:01:25]} Rc2+ {[%emt 0:00:09]} 55. Ke3 {[%emt 0:02:37]} Rc3 {[%emt 0:00:06]} 56. Kd2 {[%emt 0:01:10]} Rxb3 {[%emt 0:00:20]} 57. Rh4 {[%emt 0:00:17]} Bg6 {[%emt 0:01:27]} (57... Rb1 $11) 58. Ne5 $14 {[%emt 0:00:24]} ({But not} 58. Nxb4 Kf7 $11) 58... Rb2+ {[%emt 0:00:40]} 59. Ke3 {[%emt 0:00:14]} Rb3+ $1 {[%emt 0:16:43]} 60. Kd4 {[%emt 0:00:05]} Be8 {[%emt 0:01:27]} 61. Rg4+ {[%emt 0:00:31]} Kf8 {[%emt 0:00:19]} 62. h4 {[%emt 0:00:43]} ({Better is} 62. Rf4 $14 Rxh3 (62... Bf7 $2 63. Rh4 $18) 63. f7 Bxf7 64. Rxf7+ Ke8 65. Rb7) 62... Ra3 {[%emt 0:01:11]} ({Black should play} 62... Rb1 $1 $11) 63. Rf4 {[%emt 0:01:13]} (63. Rg7 $1 $14) 63... b3 $11 {[%emt 0:01:21]} 64. Kc3 {[%emt 0:00:33]} Ra4 {[%emt 0:00:27]} 65. Rf3 {[%emt 0:00:36]} Re4 {[%emt 0:00:35]} 66. f7 {[%emt 0:00:42]} Rxe5 {[%emt 0:00:11]} 67. fxe8=Q+ {[%emt 0:00:07]} Kxe8 {[%emt 0:00:03]} 68. Kxb3 {[%emt 0:00:05]} Re4 {[%emt 0:00:11]} 1/2-1/2

[Event "FIDE Womens Candidates 2024"]
[Site "Toronto"]
[Date "2024.04.20"]
[Round "13.2"]
[White "Salimova, Nurgyul"]
[Black "Lagno, Kateryna"]
[Result "1/2-1/2"]
[ECO "E05"]
[WhiteElo "2432"]
[BlackElo "2542"]
[Annotator "TA"]
[PlyCount "88"]
[EventDate "2024.04.02"]
[EventType "tourn"]
[EventCountry "CAN"]
[SourceTitle "playchess.com"]
[Source "ChessBase"]
[SourceQuality "1"]
[TimeControl "40/5400+30:1800+30"]

{[%evp 16,88,25,50,25,37,39,26,29,0,0,0,18,27,20,20,18,11,0,0,0,0,0,0,0,0,0,0,0,-7,0,-34,-57,-67,-56,-68,-40,-38,-32,-71,-72,-73,-75,-187,-153,-150,-137,-153,-98,-175,-144,-374,-374,-377,-378,-373,-369,-383,-412,-341,-63,-365,-333,-666,-625,-458,-182,-163,-171,-171,-26,-25,0,-54,-55]} 1. Nf3 {[%emt 0:00:05]} d5 {[%emt 0:00:35]} 2. g3 {[%emt 0:00:25]} Nf6 {[%emt 0:00:10]} 3. Bg2 {[%emt 0:00:21]} e6 {[%emt 0:00:07]} 4. O-O {[%emt 0:01:11]} Be7 {[%emt 0:00:05]} 5. d4 {[%emt 0:00:35]} O-O {[%emt 0:00:12]} 6. c4 {[%emt 0:00:20]} dxc4 {[%emt 0:00:18]} 7. Qc2 {[%emt 0:00:08]} a6 {[%emt 0:00:24]} 8. a4 {[%emt 0:00:16]} Nbd7 {[%emt 0:00:16]} 9. Nbd2 {[%emt 0:06:39]} b6 {[%emt 0:01:32]} 10. Ne5 {[%emt 0:06:32]} Nxe5 {[%emt 0:00:25]} 11. dxe5 {[%emt 0:00:15]} Nd5 {[%emt 0:00:06] White has an edge.} 12. Nxc4 {[%emt 0:02:49]} Bb7 {[%emt 0:00:52]} 13. Qe4 {[%emt 0:06:08]} Qc8 {[%emt 0:05:22]} 14. Qg4 {[%emt 0:01:04]} f5 {[%emt 0:08:44]} 15. exf6 {[%emt 0:00:45]} Nxf6 {[%emt 0:00:05]} 16. Qh3 {[%emt 0:11:54] [#] Bxb7 is the strong threat.} Bxg2 {[%emt 0:17:10]} 17. Qxg2 {[%emt 0:00:13]} Qe8 {[%emt 0:08:56]} 18. Bg5 {[%emt 0:03:34]} Rd8 {[%emt 0:03:29][%cal Ba8d8,Bd8d4,Bd4g4][%mdl 32]} 19. b3 {[%emt 0:23:59]} Qh5 {[%emt 0:04:14][%csl LRe2,LRg5]} 20. h4 {[%emt 0:03:31]} h6 {[%emt 0:03:24]} 21. Bxf6 {[%emt 0:02:31]} Bxf6 {[%emt 0:00:11]} 22. Ra2 {[%emt 0:01:11][%cal Ba1a2,Ba2c2,Bc2c4][%mdl 32]} Rd4 {[%emt 0:08:29]} 23. e3 {[%emt 0:06:58]} Rg4 {[%emt 0:05:44]} 24. Nd2 {[%emt 0:06:16][%cal Oa4a5]} Bxh4 {[%emt 0:01:48]} 25. Rc2 {[%emt 0:00:25]} Qg6 {[%emt 0:09:56]} 26. Rc4 {[%emt 0:00:35] Black must now prevent Rxg4.} (26. Rxc7 $2 {too greedy.} Bxg3 27. fxg3 Rxg3 28. Rxf8+ Kxf8 29. Rc8+ Ke7 $19) 26... Bd8 {[%emt 0:06:21]} 27. Rfc1 {[%emt 0:03:00]} Rxc4 {[%emt 0:01:29]} 28. Rxc4 {[%emt 0:01:01]} c5 $36 {[%emt 0:01:12][%mdl 2048] White is under strong pressure.} 29. Re4 {[%emt 0:01:10]} (29. Qe4 $17 Qf6 30. f4) 29... b5 {[%emt 0:01:50]} 30. axb5 {[%emt 0:03:56]} axb5 {[%emt 0:00:01]} 31. Re5 {[%emt 0:01:14][%cal Og2c6] Inhibits Qf5.} Qd3 {[%emt 0:01:37]} (31... Qc2 $142 32. Ne4 Qxb3 33. Rxc5 Qb1+ 34. Kh2 b4) 32. Ne4 {[%emt 0:01:02]} (32. Nf1 $17 {might work better.}) 32... Qxb3 $19 {[%emt 0:01:20] Threatens to win with ...b4.} 33. Nxc5 $2 {[%emt 0:05:36]} (33. Qh3 $17) 33... Qc3 {[%emt 0:00:56]} 34. Rh5 {[%emt 0:00:32]} g6 {[%emt 0:01:50]} 35. Rxh6 {[%emt 0:00:23]} Qxc5 {[%emt 0:00:11]} 36. Rxg6+ {[%emt 0:00:21]} Kf7 {[%emt 0:00:25]} 37. Rh6 {[%emt 0:00:27]} Qd5 {[%emt 0:01:53]} (37... Qc1+ $19 38. Kh2 Qc2 (38... Kg7 $2 39. Rh5 $19)) 38. Qh3 $2 {[%emt 0:00:37][%mdl 8192]} (38. Rh7+ $1 $15 Kf6 39. Qxd5 exd5 40. Rb7) 38... Bf6 {[%emt 0:03:56]} 39. Rh5 $2 {[%emt 0:00:12]} (39. Rh7+ Kg8 40. Rc7) 39... Qd1+ {[%emt 0:02:02]} 40. Kg2 {[%emt 0:00:00]} Qd3 $2 {[%emt 0:00:00]} (40... b4 41. Rh7+ Bg7 (41... Kg8 $2 42. Rc7 $19)) 41. Qg4 {[%emt 0:04:31]} Rg8 {[%emt 0:05:40]} 42. Qf4 {[%emt 0:04:55] [#]} Rc8 {[%emt 0:03:29] Prevents Qc7+} (42... Qd7 $1 $19 {...Qc6+ would now be deadly.} 43. Rh7+ Rg7) 43. e4 $1 $11 {[%emt 0:06:44]} Rc4 {[%emt 0:01:44]} 44. f3 {[%emt 0:02:17]} (44. Rh7+ $1 $11 Kg8 45. Rh6 Qxe4+ 46. Qxe4 Rxe4 47. Rxf6) 44... Rc2+ {[%emt 0:15:16] Weighted Error Value: White=0.49/Black=0.38.  Loses game:     	White=2     	---        Missed win:     	---       	Black=1      Mistake:       	White=4     	Black=2      Inaccurate:     	White=3     	Black=1      OK:         	White=11    	Black=16     Best:        	White=1     	Black=3      Strong:       	White=1     	---} 1/2-1/2